[Event "Chessable Masters - Torneo preliminare"]
[White "Yakubboev, Nodirbek"]
[Black "Antipov, Mikhail Al."]
[WhiteFideId "14203987"]
[BlackFideId "4107012"]
[WhiteElo "2577"]
[BlackElo "2593"]
[Result "1-0"]
[Round "2"]
[TimeControl "600+2"]
[Date "2023.03.13"]
[WhiteClock "0:01:09"]
[BlackClock "0:02:27"]

1. c4 {[%clk 0:09:59]}  c5 {[%clk 0:10:00]} 2. g3 {[%clk 0:09:46]}  g6 {[%clk 0:10:00]} 3. Bg2 {[%clk 0:09:47]}  Bg7 {[%clk 0:10:02]} 4. Nc3 {[%clk 0:09:47]}  Nc6 {[%clk 0:09:58]} 5. Nf3 {[%clk 0:09:49]}  d6 {[%clk 0:09:59]} 6. O-O {[%clk 0:09:48]}  Be6 {[%clk 0:09:58]} 7. d3 {[%clk 0:08:59]}  Qc8 {[%clk 0:09:58]} 8. Rb1 {[%clk 0:08:57]}  Bh3 {[%clk 0:09:57]} 9. Bxh3 {[%clk 0:08:05]}  Qxh3 {[%clk 0:09:59]} 10. Nd5 {[%clk 0:08:07]}  Qd7 {[%clk 0:09:51]} 11. Bd2 {[%clk 0:06:00]}  e6 {[%clk 0:09:47]} 12. Bc3 {[%clk 0:06:00]}  f6 {[%clk 0:09:48]} 13. Nf4 {[%clk 0:05:55]}  Nge7 {[%clk 0:09:48]} 14. b4 {[%clk 0:05:11]}  b6 {[%clk 0:09:00]} 15. e3 {[%clk 0:03:04]}  e5 {[%clk 0:07:58]} 16. Nd5 {[%clk 0:02:50]}  Nxd5 {[%clk 0:07:56]} 17. cxd5 {[%clk 0:02:51]}  Ne7 {[%clk 0:07:57]} 18. e4 {[%clk 0:02:51]}  O-O {[%clk 0:07:31]} 19. bxc5 {[%clk 0:02:24]}  bxc5 {[%clk 0:07:06]} 20. Nd2 {[%clk 0:02:24]}  f5 {[%clk 0:07:00]} 21. f3 {[%clk 0:02:22]}  f4 {[%clk 0:06:42]} 22. g4 {[%clk 0:02:22]}  h5 {[%clk 0:06:42]} 23. h3 {[%clk 0:02:20]}  Bf6 {[%clk 0:06:28]} 24. Kf2 {[%clk 0:02:18]}  Kf7 {[%clk 0:05:48]} 25. Qb3 {[%clk 0:02:11]}  Rh8 {[%clk 0:04:56]} 26. Rh1 {[%clk 0:02:12]}  hxg4 {[%clk 0:04:08]} 27. hxg4 {[%clk 0:02:13]}  Rxh1 {[%clk 0:04:10]} 28. Rxh1 {[%clk 0:02:13]}  Rh8 {[%clk 0:04:11]} 29. Rxh8 {[%clk 0:02:10]}  Bxh8 {[%clk 0:04:13]} 30. Nc4 {[%clk 0:02:09]}  Bf6 {[%clk 0:04:04]} 31. Qb7 {[%clk 0:01:49]}  Ke8 {[%clk 0:03:29]} 32. Qa6 {[%clk 0:01:49]}  Nc8 {[%clk 0:03:17]} 33. Qxc8+ {[%clk 0:01:38]}  Qxc8 {[%clk 0:03:18]} 34. Nxd6+ {[%clk 0:01:40]}  Kd7 {[%clk 0:03:19]} 35. Nxc8 {[%clk 0:01:41]}  Kxc8 {[%clk 0:03:21]} 36. Ke2 {[%clk 0:01:42]}  Kd7 {[%clk 0:03:22]} 37. Kd2 {[%clk 0:01:42]}  Kd6 {[%clk 0:03:23]} 38. Kc2 {[%clk 0:01:43]}  Bh4 {[%clk 0:02:51]} 39. Kb3 {[%clk 0:01:36]}  a6 {[%clk 0:02:53]} 40. Ka4 {[%clk 0:01:31]}  Bd8 {[%clk 0:02:54]} 41. Ba5 {[%clk 0:01:30]}  Bh4 {[%clk 0:02:55]} 42. Bb6 {[%clk 0:01:28]}  Be1 {[%clk 0:02:56]} 43. Kb3 {[%clk 0:01:19]}  Bf2 {[%clk 0:02:36]} 44. Kc4 {[%clk 0:01:20]}  Be3 {[%clk 0:02:36]} 45. Ba7 {[%clk 0:01:19]}  Bd4 {[%clk 0:02:37]} 46. a3 {[%clk 0:01:10]}  a5 {[%clk 0:02:32]} 47. a4 {[%clk 0:01:08]}  g5 {[%clk 0:02:27]} 48. Bb6 {[%clk 0:01:09]} 1-0


[Site "Internet"]

[Event "Chessable Masters - Torneo preliminare"]
[White "Terry, Renato"]
[Black "Iturrizaga Bonelli, Eduardo"]
[WhiteFideId "3803457"]
[BlackFideId "3901211"]
[WhiteElo "2472"]
[BlackElo "2654"]
[Result "1/2-1/2"]
[Round "2"]
[TimeControl "600+2"]
[Date "2023.03.13"]
[WhiteClock "0:00:14"]
[BlackClock "0:00:09"]

1. d4 {[%clk 0:09:51]}  Nf6 {[%clk 0:10:00]} 2. Nf3 {[%clk 0:09:48]}  e6 {[%clk 0:09:57]} 3. c4 {[%clk 0:09:29]}  Bb4+ {[%clk 0:09:51]} 4. Bd2 {[%clk 0:09:25]}  a5 {[%clk 0:09:51]} 5. g3 {[%clk 0:09:09]}  d5 {[%clk 0:09:46]} 6. Qc2 {[%clk 0:09:01]}  O-O {[%clk 0:09:45]} 7. Bg2 {[%clk 0:08:56]}  Be7 {[%clk 0:09:45]} 8. O-O {[%clk 0:08:54]}  c6 {[%clk 0:09:45]} 9. Bf4 {[%clk 0:08:52]}  Nbd7 {[%clk 0:09:46]} 10. Nbd2 {[%clk 0:08:50]}  Nh5 {[%clk 0:09:30]} 11. Be3 {[%clk 0:08:38]}  f5 {[%clk 0:09:08]} 12. cxd5 {[%clk 0:08:16]}  exd5 {[%clk 0:09:06]} 13. Bf4 {[%clk 0:08:09]}  g5 {[%clk 0:07:45]} 14. Be5 {[%clk 0:08:10]}  g4 {[%clk 0:07:46]} 15. Ne1 {[%clk 0:08:11]}  Nxe5 {[%clk 0:07:47]} 16. dxe5 {[%clk 0:08:13]}  f4 {[%clk 0:07:49]} 17. Nd3 {[%clk 0:07:58]}  Bf5 {[%clk 0:07:48]} 18. Qb3 {[%clk 0:07:59]}  Bxd3 {[%clk 0:06:44]} 19. Qxd3 {[%clk 0:07:23]}  Qc7 {[%clk 0:06:43]} 20. Qd4 {[%clk 0:07:22]}  Ng7 {[%clk 0:05:43]} 21. Rac1 {[%clk 0:07:16]}  Rad8 {[%clk 0:04:25]} 22. Nb3 {[%clk 0:06:36]}  Ne6 {[%clk 0:04:00]} 23. Qa4 {[%clk 0:06:37]}  Qxe5 {[%clk 0:03:28]} 24. Nxa5 {[%clk 0:06:06]}  Ra8 {[%clk 0:03:11]} 25. b4 {[%clk 0:06:05]}  Nd4 {[%clk 0:02:56]} 26. Rfe1 {[%clk 0:06:06]}  fxg3 {[%clk 0:02:31]} 27. fxg3 {[%clk 0:05:36]}  Nxe2+ {[%clk 0:02:24]} 28. Kh1 {[%clk 0:05:37]}  Rf2 {[%clk 0:01:49]} 29. Nxc6 {[%clk 0:05:23]}  Nxg3+ {[%clk 0:00:58]} 30. Kg1 {[%clk 0:05:24]}  Ne2+ {[%clk 0:00:58]} 31. Rxe2 {[%clk 0:04:46]}  Qxe2 {[%clk 0:01:00]} 32. Bxd5+ {[%clk 0:04:14]}  Kg7 {[%clk 0:00:59]} 33. Qxa8 {[%clk 0:04:15]}  Rf8 {[%clk 0:00:17]} 34. Qa3 {[%clk 0:02:06]}  bxc6 {[%clk 0:00:18]} 35. Bxc6 {[%clk 0:02:04]}  Bg5 {[%clk 0:00:19]} 36. Qc3+ {[%clk 0:02:01]}  Kh6 {[%clk 0:00:19]} 37. Re1 {[%clk 0:01:49]}  Rf1+ {[%clk 0:00:13]} 38. Rxf1 {[%clk 0:01:46]}  Be3+ {[%clk 0:00:14]} 39. Qxe3+ {[%clk 0:01:46]}  Qxe3+ {[%clk 0:00:16]} 40. Kg2 {[%clk 0:01:40]}  Qe6 {[%clk 0:00:12]} 41. b5 {[%clk 0:01:39]}  Qxa2+ {[%clk 0:00:13]} 42. Rf2 {[%clk 0:01:40]}  Qb3 {[%clk 0:00:14]} 43. Kg1 {[%clk 0:00:44]}  Kg5 {[%clk 0:00:15]} 44. Re2 {[%clk 0:00:39]}  Qc3 {[%clk 0:00:11]} 45. Kg2 {[%clk 0:00:37]}  h5 {[%clk 0:00:11]} 46. Kf2 {[%clk 0:00:31]}  Qc5+ {[%clk 0:00:12]} 47. Ke1 {[%clk 0:00:31]}  h4 {[%clk 0:00:11]} 48. Kd2 {[%clk 0:00:32]}  Qd4+ {[%clk 0:00:11]} 49. Kc2 {[%clk 0:00:33]}  Qc4+ {[%clk 0:00:12]} 50. Kd2 {[%clk 0:00:35]}  h3 {[%clk 0:00:10]} 51. Rf2 {[%clk 0:00:30]}  Qd4+ {[%clk 0:00:10]} 52. Ke2 {[%clk 0:00:31]}  Qc3 {[%clk 0:00:10]} 53. Kd1 {[%clk 0:00:25]}  Kh4 {[%clk 0:00:10]} 54. Ke2 {[%clk 0:00:25]}  Qc4+ {[%clk 0:00:11]} 55. Ke3 {[%clk 0:00:26]}  Qc5+ {[%clk 0:00:13]} 56. Ke2 {[%clk 0:00:27]}  Qd6 {[%clk 0:00:13]} 57. Ke3 {[%clk 0:00:28]}  Qe5+ {[%clk 0:00:14]} 58. Kd3 {[%clk 0:00:29]}  g3 {[%clk 0:00:14]} 59. hxg3+ {[%clk 0:00:30]}  Kxg3 {[%clk 0:00:14]} 60. Rf3+ {[%clk 0:00:31]}  Kg4 {[%clk 0:00:13]} 61. Re3 {[%clk 0:00:26]}  Qd6+ {[%clk 0:00:14]} 62. Kc4 {[%clk 0:00:24]}  h2 {[%clk 0:00:16]} 63. Rd3 {[%clk 0:00:19]}  Qe6+ {[%clk 0:00:15]} 64. Kc5 {[%clk 0:00:17]}  Qe7+ {[%clk 0:00:15]} 65. Kb6 {[%clk 0:00:16]}  Qf6 {[%clk 0:00:15]} 66. Kb7 {[%clk 0:00:13]}  Qg7+ {[%clk 0:00:16]} 67. Ka6 {[%clk 0:00:13]}  Qh6 {[%clk 0:00:16]} 68. Rd1 {[%clk 0:00:12]}  Kg3 {[%clk 0:00:13]} 69. Kb7 {[%clk 0:00:13]}  Qh7+ {[%clk 0:00:13]} 70. Ka6 {[%clk 0:00:13]}  Qc2 {[%clk 0:00:14]} 71. Rh1 {[%clk 0:00:14]}  Qc4 {[%clk 0:00:13]} 72. Kb6 {[%clk 0:00:15]}  Qd4+ {[%clk 0:00:14]} 73. Ka6 {[%clk 0:00:17]}  Qc5 {[%clk 0:00:14]} 74. Kb7 {[%clk 0:00:18]}  Qd6 {[%clk 0:00:15]} 75. Kb6 {[%clk 0:00:19]}  Kf2 {[%clk 0:00:16]} 76. Kb7 {[%clk 0:00:19]}  Ke3 {[%clk 0:00:17]} 77. Re1+ {[%clk 0:00:09]}  Kd2 {[%clk 0:00:18]} 78. Rh1 {[%clk 0:00:09]}  Qe7+ {[%clk 0:00:18]} 79. Kb6 {[%clk 0:00:09]}  Qe5 {[%clk 0:00:16]} 80. Kb7 {[%clk 0:00:10]}  Kc3 {[%clk 0:00:16]} 81. Kb6 {[%clk 0:00:11]}  Kb4 {[%clk 0:00:17]} 82. Rb1+ {[%clk 0:00:12]}  Ka4 {[%clk 0:00:18]} 83. Ka6 {[%clk 0:00:09]}  Qf6 {[%clk 0:00:18]} 84. Rc1 {[%clk 0:00:07]}  Qh6 {[%clk 0:00:11]} 85. Rb1 {[%clk 0:00:07]}  Qg6 {[%clk 0:00:06]} 86. Rc1 {[%clk 0:00:08]}  Qf6 {[%clk 0:00:07]} 87. Rb1 {[%clk 0:00:07]}  Qg6 {[%clk 0:00:06]} 88. Rc1 {[%clk 0:00:08]}  Kb4 {[%clk 0:00:07]} 89. Rh1 {[%clk 0:00:04]}  Qg1 {[%clk 0:00:06]} 90. Kb7 {[%clk 0:00:04]}  Ka5 {[%clk 0:00:06]} 91. Kc7 {[%clk 0:00:04]}  Qg3+ {[%clk 0:00:07]} 92. Kd7 {[%clk 0:00:06]}  Kb6 {[%clk 0:00:08]} 93. Ke6 {[%clk 0:00:07]}  Qf4 {[%clk 0:00:07]} 94. Kd5 {[%clk 0:00:07]}  Kc7 {[%clk 0:00:07]} 95. Kc5 {[%clk 0:00:07]}  Qe3+ {[%clk 0:00:08]} 96. Kd5 {[%clk 0:00:08]}  Qf2 {[%clk 0:00:09]} 97. Ke5 {[%clk 0:00:08]}  Qg1 {[%clk 0:00:09]} 98. Ke6 {[%clk 0:00:08]}  Qe3+ {[%clk 0:00:09]} 99. Kd5 {[%clk 0:00:09]}  Qd3+ {[%clk 0:00:10]} 100. Ke5 {[%clk 0:00:08]}  Qd6+ {[%clk 0:00:12]} 101. Ke4 {[%clk 0:00:09]}  Kb6 {[%clk 0:00:12]} 102. Kf3 {[%clk 0:00:10]}  Qd3+ {[%clk 0:00:06]} 103. Kg2 {[%clk 0:00:10]}  Qe2+ {[%clk 0:00:07]} 104. Kg3 {[%clk 0:00:12]}  Qe3+ {[%clk 0:00:07]} 105. Kxh2 {[%clk 0:00:12]}  Qf2+ {[%clk 0:00:09]} 106. Kh3 {[%clk 0:00:13]}  Qf5+ {[%clk 0:00:09]} 107. Kg2 {[%clk 0:00:14]} 1/2-1/2


[Site "Internet"]

[Event "Chessable Masters - Torneo preliminare"]
[White "Alekseenko, Kirill"]
[Black "Kramnik, Vladimir"]
[WhiteFideId "4135539"]
[BlackFideId "4101588"]
[WhiteElo "2632"]
[BlackElo "2756"]
[Result "1-0"]
[Round "2"]
[TimeControl "600+2"]
[Date "2023.03.13"]
[WhiteClock "0:00:24"]
[BlackClock "0:00:03"]

1. e4 {[%clk 0:09:52]}  e5 {[%clk 0:09:58]} 2. Nf3 {[%clk 0:09:52]}  Nc6 {[%clk 0:09:58]} 3. Bc4 {[%clk 0:09:49]}  Nf6 {[%clk 0:09:58]} 4. d3 {[%clk 0:09:50]}  Be7 {[%clk 0:09:58]} 5. Nc3 {[%clk 0:09:35]}  d6 {[%clk 0:09:54]} 6. a4 {[%clk 0:09:34]}  O-O {[%clk 0:09:54]} 7. O-O {[%clk 0:09:35]}  h6 {[%clk 0:09:53]} 8. h3 {[%clk 0:09:28]}  Re8 {[%clk 0:09:54]} 9. Re1 {[%clk 0:09:26]}  Bf8 {[%clk 0:09:52]} 10. a5 {[%clk 0:08:23]}  a6 {[%clk 0:09:48]} 11. Be3 {[%clk 0:08:05]}  Be6 {[%clk 0:09:44]} 12. Bxe6 {[%clk 0:08:04]}  Rxe6 {[%clk 0:09:44]} 13. Nd5 {[%clk 0:08:05]}  Re8 {[%clk 0:08:33]} 14. c4 {[%clk 0:08:00]}  g6 {[%clk 0:07:51]} 15. b4 {[%clk 0:07:14]}  Bg7 {[%clk 0:07:36]} 16. Qd2 {[%clk 0:07:09]}  Kh7 {[%clk 0:07:30]} 17. b5 {[%clk 0:06:59]}  Nxd5 {[%clk 0:06:32]} 18. cxd5 {[%clk 0:06:16]}  Ne7 {[%clk 0:06:19]} 19. Reb1 {[%clk 0:06:12]}  f5 {[%clk 0:06:04]} 20. Qc2 {[%clk 0:06:09]}  axb5 {[%clk 0:05:27]} 21. Rxb5 {[%clk 0:06:06]}  b6 {[%clk 0:05:02]} 22. Bd2 {[%clk 0:05:28]}  Qd7 {[%clk 0:04:55]} 23. Qc4 {[%clk 0:05:22]}  Ra7 {[%clk 0:03:53]} 24. Rab1 {[%clk 0:05:04]}  Nc8 {[%clk 0:03:39]} 25. Qc2 {[%clk 0:04:20]}  f4 {[%clk 0:03:28]} 26. axb6 {[%clk 0:03:40]}  cxb6 {[%clk 0:03:08]} 27. R5b4 {[%clk 0:03:39]}  Rc7 {[%clk 0:02:57]} 28. Rc4 {[%clk 0:03:32]}  Rc5 {[%clk 0:02:24]} 29. Bb4 {[%clk 0:03:25]}  Rxc4 {[%clk 0:02:15]} 30. Qxc4 {[%clk 0:03:05]}  Ne7 {[%clk 0:02:10]} 31. Qa6 {[%clk 0:02:52]}  Rb8 {[%clk 0:02:04]} 32. Qa3 {[%clk 0:02:51]}  Nc8 {[%clk 0:02:00]} 33. Rc1 {[%clk 0:02:49]}  Rb7 {[%clk 0:01:05]} 34. Rc6 {[%clk 0:02:43]}  Rc7 {[%clk 0:01:04]} 35. Qa8 {[%clk 0:02:31]}  Bf6 {[%clk 0:00:47]} 36. Nd2 {[%clk 0:02:08]}  b5 {[%clk 0:00:35]} 37. Nf3 {[%clk 0:01:43]}  Be7 {[%clk 0:00:17]} 38. Ba5 {[%clk 0:01:09]}  Rxc6 {[%clk 0:00:15]} 39. dxc6 {[%clk 0:01:06]}  Qe6 {[%clk 0:00:16]} 40. Qb7 {[%clk 0:01:01]}  g5 {[%clk 0:00:15]} 41. Qd7 {[%clk 0:00:51]}  Qg8 {[%clk 0:00:16]} 42. d4 {[%clk 0:00:47]}  Qf8 {[%clk 0:00:08]} 43. dxe5 {[%clk 0:00:39]}  Kg8 {[%clk 0:00:05]} 44. Qe6+ {[%clk 0:00:38]}  Kh7 {[%clk 0:00:05]} 45. Qd7 {[%clk 0:00:32]}  Kg8 {[%clk 0:00:05]} 46. Bc3 {[%clk 0:00:30]}  dxe5 {[%clk 0:00:04]} 47. Qe6+ {[%clk 0:00:30]}  Kh7 {[%clk 0:00:04]} 48. Nxe5 {[%clk 0:00:31]}  Qe8 {[%clk 0:00:02]} 49. Ng4 {[%clk 0:00:26]}  Qg6 {[%clk 0:00:02]} 50. Qxc8 {[%clk 0:00:25]}  Qxe4 {[%clk 0:00:03]} 51. Qh8+ {[%clk 0:00:24]} 1-0


[Site "Internet"]

[Event "Chessable Masters - Torneo preliminare"]
[White "Chigaev, Maksim"]
[Black "Firouzja, Alireza"]
[WhiteFideId "4108116"]
[BlackFideId "12573981"]
[WhiteElo "2568"]
[BlackElo "2745"]
[Result "0-1"]
[Round "2"]
[TimeControl "600+2"]
[Date "2023.03.13"]
[WhiteClock "0:00:09"]
[BlackClock "0:00:07"]

1. e4 {[%clk 0:10:01]}  c5 {[%clk 0:08:50]} 2. Nf3 {[%clk 0:10:01]}  d6 {[%clk 0:08:45]} 3. d4 {[%clk 0:10:01]}  cxd4 {[%clk 0:08:46]} 4. Nxd4 {[%clk 0:10:03]}  Nf6 {[%clk 0:08:47]} 5. Nc3 {[%clk 0:10:05]}  a6 {[%clk 0:08:48]} 6. h3 {[%clk 0:09:33]}  e5 {[%clk 0:08:31]} 7. Nb3 {[%clk 0:09:31]}  Be7 {[%clk 0:08:25]} 8. Be3 {[%clk 0:09:29]}  Be6 {[%clk 0:08:16]} 9. Qf3 {[%clk 0:09:21]}  O-O {[%clk 0:07:59]} 10. O-O-O {[%clk 0:09:20]}  a5 {[%clk 0:07:59]} 11. Bb5 {[%clk 0:09:09]}  Na6 {[%clk 0:07:43]} 12. a4 {[%clk 0:09:07]}  Rc8 {[%clk 0:07:03]} 13. g4 {[%clk 0:06:54]}  Rxc3 {[%clk 0:07:01]} 14. bxc3 {[%clk 0:06:54]}  Qc7 {[%clk 0:07:01]} 15. Bg5 {[%clk 0:04:34]}  Rc8 {[%clk 0:05:38]} 16. Bxf6 {[%clk 0:03:56]}  Bxf6 {[%clk 0:05:36]} 17. h4 {[%clk 0:03:40]}  Nb4 {[%clk 0:04:58]} 18. Rh3 {[%clk 0:02:13]}  d5 {[%clk 0:04:40]} 19. exd5 {[%clk 0:02:07]}  e4 {[%clk 0:04:29]} 20. Qxe4 {[%clk 0:00:33]}  Na2+ {[%clk 0:04:21]} 21. Kd2 {[%clk 0:00:35]}  Nxc3 {[%clk 0:01:46]} 22. Rxc3 {[%clk 0:00:35]}  Qxc3+ {[%clk 0:01:44]} 23. Ke2 {[%clk 0:00:37]}  Qxc2+ {[%clk 0:01:45]} 24. Qxc2 {[%clk 0:00:30]}  Rxc2+ {[%clk 0:01:46]} 25. Kf3 {[%clk 0:00:31]}  Rc3+ {[%clk 0:01:42]} 26. Kf4 {[%clk 0:00:32]}  Rxb3 {[%clk 0:01:10]} 27. dxe6 {[%clk 0:00:33]}  fxe6 {[%clk 0:01:12]} 28. g5 {[%clk 0:00:27]}  Rb4+ {[%clk 0:01:10]} 29. Kg3 {[%clk 0:00:14]}  Be5+ {[%clk 0:01:09]} 30. Kh3 {[%clk 0:00:16]}  Bd4 {[%clk 0:01:07]} 31. Kg3 {[%clk 0:00:13]}  Kf7 {[%clk 0:01:05]} 32. Rc1 {[%clk 0:00:13]}  Be5+ {[%clk 0:01:06]} 33. Kh3 {[%clk 0:00:15]}  Rf4 {[%clk 0:00:59]} 34. Rc2 {[%clk 0:00:13]}  Ke7 {[%clk 0:00:59]} 35. Re2 {[%clk 0:00:14]}  Bd6 {[%clk 0:00:49]} 36. Rc2 {[%clk 0:00:09]}  h6 {[%clk 0:00:38]} 37. gxh6 {[%clk 0:00:05]}  gxh6 {[%clk 0:00:40]} 38. Re2 {[%clk 0:00:04]}  b6 {[%clk 0:00:24]} 39. Rd2 {[%clk 0:00:06]}  Re4 {[%clk 0:00:21]} 40. f3 {[%clk 0:00:05]}  Rf4 {[%clk 0:00:21]} 41. Rd3 {[%clk 0:00:06]}  Be5 {[%clk 0:00:21]} 42. h5 {[%clk 0:00:05]}  Bf6 {[%clk 0:00:20]} 43. Rd7+ {[%clk 0:00:06]}  Kf8 {[%clk 0:00:21]} 44. Kg3 {[%clk 0:00:08]}  Be5 {[%clk 0:00:20]} 45. Kg2 {[%clk 0:00:08]}  Rh4 {[%clk 0:00:18]} 46. Rb7 {[%clk 0:00:09]}  Bd4 {[%clk 0:00:17]} 47. Bc4 {[%clk 0:00:05]}  Bc5 {[%clk 0:00:11]} 48. Bxe6 {[%clk 0:00:06]}  Rxa4 {[%clk 0:00:12]} 49. Rf7+ {[%clk 0:00:07]}  Ke8 {[%clk 0:00:12]} 50. f4 {[%clk 0:00:09]}  Re4 {[%clk 0:00:12]} 51. f5 {[%clk 0:00:10]}  a4 {[%clk 0:00:08]} 52. Ra7 {[%clk 0:00:10]}  a3 {[%clk 0:00:10]} 53. Kf3 {[%clk 0:00:10]}  Re1 {[%clk 0:00:08]} 54. Kf4 {[%clk 0:00:08]}  b5 {[%clk 0:00:07]} 55. Ra5 {[%clk 0:00:06]}  Bd6+ {[%clk 0:00:08]} 56. Kg4 {[%clk 0:00:07]}  b4 {[%clk 0:00:07]} 57. Ra7 {[%clk 0:00:08]}  Rxe6 {[%clk 0:00:06]} 58. fxe6 {[%clk 0:00:09]}  b3 {[%clk 0:00:07]} 0-1


[Site "Internet"]

[Event "Chessable Masters - Torneo preliminare"]
[White "Lazavik, Denis"]
[Black "Ibarra Jerez, Jose Carlos"]
[WhiteFideId "13515110"]
[BlackFideId "2226332"]
[WhiteElo "2488"]
[BlackElo "2546"]
[Result "1-0"]
[Round "2"]
[TimeControl "600+2"]
[Date "2023.03.13"]
[WhiteClock "0:00:12"]
[BlackClock "0:00:06"]

1. d4 {[%clk 0:10:00]}  Nf6 {[%clk 0:09:59]} 2. c4 {[%clk 0:10:00]}  d6 {[%clk 0:10:00]} 3. Nf3 {[%clk 0:10:00]}  g6 {[%clk 0:09:59]} 4. Nc3 {[%clk 0:10:00]}  Bf5 {[%clk 0:09:59]} 5. Qb3 {[%clk 0:09:37]}  b6 {[%clk 0:09:57]} 6. h3 {[%clk 0:09:33]}  Bg7 {[%clk 0:09:56]} 7. g4 {[%clk 0:09:33]}  Bd7 {[%clk 0:09:56]} 8. e4 {[%clk 0:09:26]}  O-O {[%clk 0:09:51]} 9. Be3 {[%clk 0:09:22]}  Nc6 {[%clk 0:09:31]} 10. d5 {[%clk 0:08:48]}  Na5 {[%clk 0:09:30]} 11. Qc2 {[%clk 0:08:46]}  c5 {[%clk 0:09:24]} 12. Be2 {[%clk 0:08:18]}  a6 {[%clk 0:09:21]} 13. a4 {[%clk 0:08:16]}  e5 {[%clk 0:09:13]} 14. Nd2 {[%clk 0:08:04]}  Ne8 {[%clk 0:09:07]} 15. h4 {[%clk 0:07:21]}  Nc7 {[%clk 0:08:44]} 16. Rb1 {[%clk 0:05:39]}  Nb7 {[%clk 0:08:34]} 17. h5 {[%clk 0:04:06]}  g5 {[%clk 0:08:29]} 18. b4 {[%clk 0:03:56]}  Rb8 {[%clk 0:07:06]} 19. bxc5 {[%clk 0:03:39]}  Nxc5 {[%clk 0:07:04]} 20. a5 {[%clk 0:03:32]}  b5 {[%clk 0:06:32]} 21. O-O {[%clk 0:03:13]}  h6 {[%clk 0:06:03]} 22. f3 {[%clk 0:03:08]}  Bf6 {[%clk 0:05:17]} 23. Rb4 {[%clk 0:02:57]}  Qe7 {[%clk 0:04:23]} 24. Rfb1 {[%clk 0:02:55]}  Rfc8 {[%clk 0:04:24]} 25. Qa2 {[%clk 0:02:44]}  Qe8 {[%clk 0:04:18]} 26. Nb3 {[%clk 0:02:21]}  Be7 {[%clk 0:04:16]} 27. Qa3 {[%clk 0:02:14]}  Qd8 {[%clk 0:04:00]} 28. Nd2 {[%clk 0:02:10]}  Qe8 {[%clk 0:03:53]} 29. Qb2 {[%clk 0:02:05]}  Bd8 {[%clk 0:03:39]} 30. Qa2 {[%clk 0:01:56]}  Be7 {[%clk 0:03:14]} 31. R1b2 {[%clk 0:01:54]}  Bd8 {[%clk 0:03:11]} 32. cxb5 {[%clk 0:01:32]}  axb5 {[%clk 0:03:09]} 33. Nc4 {[%clk 0:01:31]}  N5a6 {[%clk 0:02:57]} 34. Nxd6 {[%clk 0:00:58]}  Nxb4 {[%clk 0:02:57]} 35. Qb3 {[%clk 0:00:45]}  Qf8 {[%clk 0:02:49]} 36. Nxc8 {[%clk 0:00:47]}  Rxc8 {[%clk 0:00:53]} 37. Qxb4 {[%clk 0:00:47]}  Qxb4 {[%clk 0:00:30]} 38. Rxb4 {[%clk 0:00:47]}  Na6 {[%clk 0:00:30]} 39. Rb3 {[%clk 0:00:47]}  Bxa5 {[%clk 0:00:32]} 40. Nxb5 {[%clk 0:00:43]}  Rc2 {[%clk 0:00:28]} 41. Bd3 {[%clk 0:00:18]}  Ra2 {[%clk 0:00:20]} 42. Nd6 {[%clk 0:00:16]}  Nb4 {[%clk 0:00:16]} 43. Bb1 {[%clk 0:00:17]}  Ra1 {[%clk 0:00:10]} 44. Kg2 {[%clk 0:00:13]}  Ba4 {[%clk 0:00:09]} 45. Rb2 {[%clk 0:00:14]}  Ra3 {[%clk 0:00:09]} 46. Bc5 {[%clk 0:00:15]}  Rb3 {[%clk 0:00:03]} 47. Rxb3 {[%clk 0:00:16]}  Bxb3 {[%clk 0:00:05]} 48. Nb7 {[%clk 0:00:17]}  Na6 {[%clk 0:00:04]} 49. Bd6 {[%clk 0:00:11]}  Bc3 {[%clk 0:00:05]} 50. Bd3 {[%clk 0:00:09]}  Nb4 {[%clk 0:00:06]} 51. Be2 {[%clk 0:00:10]}  Nc2 {[%clk 0:00:07]} 52. Nc5 {[%clk 0:00:11]}  Bd4 {[%clk 0:00:06]} 53. Nxb3 {[%clk 0:00:12]} 1-0


[Site "Internet"]

[Event "Chessable Masters - Torneo preliminare"]
[White "Van Foreest, Jorden"]
[Black "Svidler, Peter"]
[WhiteFideId "1039784"]
[BlackFideId "4102142"]
[WhiteElo "2682"]
[BlackElo "2752"]
[Result "1/2-1/2"]
[Round "2"]
[TimeControl "600+2"]
[Date "2023.03.13"]
[WhiteClock "0:03:19"]
[BlackClock "0:03:54"]

1. e4 {[%clk 0:09:48]}  e5 {[%clk 0:09:47]} 2. Nf3 {[%clk 0:09:47]}  Nc6 {[%clk 0:09:48]} 3. Bb5 {[%clk 0:09:47]}  a6 {[%clk 0:09:49]} 4. Ba4 {[%clk 0:09:48]}  Nf6 {[%clk 0:09:50]} 5. O-O {[%clk 0:09:46]}  Be7 {[%clk 0:09:48]} 6. d3 {[%clk 0:09:45]}  b5 {[%clk 0:09:43]} 7. Bb3 {[%clk 0:09:45]}  d6 {[%clk 0:09:45]} 8. c3 {[%clk 0:09:43]}  O-O {[%clk 0:09:44]} 9. Re1 {[%clk 0:09:44]}  h6 {[%clk 0:09:04]} 10. Nbd2 {[%clk 0:09:30]}  Re8 {[%clk 0:08:50]} 11. a4 {[%clk 0:09:12]}  Bd7 {[%clk 0:08:43]} 12. Nf1 {[%clk 0:09:05]}  Na5 {[%clk 0:08:32]} 13. Bc2 {[%clk 0:09:04]}  c5 {[%clk 0:08:33]} 14. h3 {[%clk 0:08:39]}  Nc6 {[%clk 0:08:21]} 15. Ne3 {[%clk 0:08:22]}  b4 {[%clk 0:07:48]} 16. Bb3 {[%clk 0:07:41]}  Na5 {[%clk 0:07:41]} 17. Ba2 {[%clk 0:07:41]}  Rb8 {[%clk 0:07:40]} 18. Nd2 {[%clk 0:07:42]}  Bf8 {[%clk 0:07:26]} 19. Ndc4 {[%clk 0:07:36]}  Be6 {[%clk 0:07:14]} 20. Nxa5 {[%clk 0:07:21]}  Qxa5 {[%clk 0:07:13]} 21. Bxe6 {[%clk 0:07:20]}  Rxe6 {[%clk 0:07:14]} 22. Bd2 {[%clk 0:07:19]}  bxc3 {[%clk 0:06:57]} 23. Bxc3 {[%clk 0:06:47]}  Qd8 {[%clk 0:06:52]} 24. Qf3 {[%clk 0:06:35]}  g6 {[%clk 0:06:31]} 25. Rab1 {[%clk 0:06:13]}  Qd7 {[%clk 0:05:45]} 26. b3 {[%clk 0:05:47]}  Bg7 {[%clk 0:05:34]} 27. Rb2 {[%clk 0:05:39]}  Ree8 {[%clk 0:05:33]} 28. Reb1 {[%clk 0:05:36]}  Rb7 {[%clk 0:05:14]} 29. Nc4 {[%clk 0:05:30]}  Qe6 {[%clk 0:05:03]} 30. b4 {[%clk 0:04:43]}  Nxe4 {[%clk 0:04:14]} 31. Qxe4 {[%clk 0:04:23]}  d5 {[%clk 0:04:14]} 32. Qf3 {[%clk 0:04:19]}  e4 {[%clk 0:04:15]} 33. dxe4 {[%clk 0:04:20]}  dxe4 {[%clk 0:04:15]} 34. Qe3 {[%clk 0:04:02]}  Qxc4 {[%clk 0:04:15]} 35. Bxg7 {[%clk 0:04:03]}  Kxg7 {[%clk 0:04:16]} 36. Qxc5 {[%clk 0:03:35]}  Qxc5 {[%clk 0:04:06]} 37. bxc5 {[%clk 0:03:35]}  Rxb2 {[%clk 0:04:08]} 38. Rxb2 {[%clk 0:03:36]}  Rc8 {[%clk 0:04:10]} 39. Rb4 {[%clk 0:03:19]}  Rxc5 {[%clk 0:03:56]} 40. Rxe4 {[%clk 0:03:19]}  Rc1+ {[%clk 0:03:54]} 41. Kh2 {[%clk 0:03:19]} 1/2-1/2


[Site "Internet"]